[Event "Live Chess"]
[Site "Chess.com"]
[Date "2023.05.21"]
[Round "-"]
[White "Mugzwang"]
[Black "TheSmoulderingMaster"]
[Result "1-0"]
[WhiteElo "1545"]
[BlackElo "1709"]
[TimeControl "300"]
[EndTime "3:00:12 PDT"]
[Termination "Mugzwang won by resignation"]

1. Nf3 {[%clk 0:04:58.1]} 1... d5 {[%clk 0:04:58.6]} 2. c4 {[%clk 0:04:56.5]}
2... d4 {[%clk 0:04:57.7]} 3. e3 {[%clk 0:04:55.7]} 3... c5 {[%clk 0:04:55.4]}
4. b4 {[%clk 0:04:54]} 4... b6 {[%clk 0:04:53.7]} 5. bxc5 {[%clk 0:04:47.1]}
5... bxc5 {[%clk 0:04:52.9]} 6. Ne5 {[%clk 0:04:35.6]} 6... Qc7 {[%clk
0:04:47.3]} 7. Qf3 {[%clk 0:04:33.7]} 7... Qxe5 {[%clk 0:04:28.5]} 8. Qxa8
{[%clk 0:04:32.1]} 8... Nf6 {[%clk 0:04:26.4]} 9. Be2 {[%clk 0:04:14.6]} 9... g6
{[%clk 0:04:25.2]} 10. Qxa7 {[%clk 0:04:11.2]} 10... Bg7 {[%clk 0:04:22]} 11.
Ba3 {[%clk 0:04:06.5]} 11... O-O {[%clk 0:04:19.5]} 12. Qxc5 {[%clk 0:04:04.5]}
12... Qe4 {[%clk 0:04:09.7]} 13. Qxe7 {[%clk 0:03:38]} 13... Qxg2 {[%clk
0:04:04.2]} 14. Rf1 {[%clk 0:03:21.5]} 14... Bh3 {[%clk 0:04:01]} 15. Qe5 {[%clk
0:03:00.6]} 15... dxe3 {[%clk 0:03:50]} 16. Bxf8 {[%clk 0:02:54.9]} 16... exf2+
{[%clk 0:03:37.7]} 17. Rxf2 {[%clk 0:02:49.2]} 17... Qxf2+ {[%clk 0:03:37.1]}
18. Kxf2 {[%clk 0:02:46.1]} 18... Ng4+ {[%clk 0:03:29.4]} 19. Bxg4 {[%clk
0:02:43.3]} 19... Bxe5 {[%clk 0:03:28.8]} 20. Bxh3 {[%clk 0:02:25.6]} 20... Bxa1
{[%clk 0:03:27.9]} 21. Bd6 {[%clk 0:02:23]} 21... Nc6 {[%clk 0:03:25.5]} 22. Bd7
{[%clk 0:02:02.6]} 22... Nd4 {[%clk 0:03:23.2]} 23. Be5 {[%clk 0:01:57.2]} 23...
Nc2 {[%clk 0:03:15.9]} 24. Bxa1 {[%clk 0:01:54.1]} 24... Nxa1 {[%clk 0:03:14.6]}
25. a4 {[%clk 0:01:53.1]} 25... Nb3 {[%clk 0:03:10.4]} 26. Nc3 {[%clk
0:01:46.4]} 26... Kf8 {[%clk 0:03:08]} 27. Bb5 {[%clk 0:01:41.2]} 27... Ke7
{[%clk 0:03:05.8]} 28. Ke3 {[%clk 0:01:40.3]} 28... f5 {[%clk 0:03:03.7]} 29. d4
{[%clk 0:01:38.9]} 29... g5 {[%clk 0:03:01.3]} 30. d5 {[%clk 0:01:36.8]} 30...
h5 {[%clk 0:02:59.8]} 31. Ne2 {[%clk 0:01:27.4]} 31... f4+ {[%clk 0:02:57.6]}
32. Kf3 {[%clk 0:01:25.4]} 32... Nc5 {[%clk 0:02:54]} 33. Nd4 {[%clk 0:01:20.8]}
33... Nd3 {[%clk 0:02:52]} 34. Nf5+ {[%clk 0:01:10.5]} 34... Kd8 {[%clk
0:02:48.8]} 35. d6 {[%clk 0:01:07.3]} 35... g4+ {[%clk 0:02:47]} 36. Ke4 {[%clk
0:01:00.7]} 36... f3 {[%clk 0:02:39.7]} 37. Kxd3 {[%clk 0:00:56.3]} 37... h4
{[%clk 0:02:37.6]} 38. Ne3 {[%clk 0:00:54.5]} 38... g3 {[%clk 0:02:35.2]} 39.
hxg3 {[%clk 0:00:47]} 39... h3 {[%clk 0:02:34.7]} 40. Nf1 {[%clk 0:00:42.2]} 1-0

[Event "Live Chess"]
[Site "Chess.com"]
[Date "2023.05.21"]
[Round "-"]
[White "GwaryTek"]
[Black "McSlash1"]
[Result "1-0"]
[WhiteElo "2065"]
[BlackElo "2001"]
[TimeControl "300"]
[EndTime "3:00:32 PDT"]
[Termination "GwaryTek won by checkmate"]

1. d4 {[%clk 0:04:59.4]} 1... c5 {[%clk 0:04:59.6]} 2. d5 {[%clk 0:04:57.8]}
2... d6 {[%clk 0:04:58.4]} 3. c4 {[%clk 0:04:57]} 3... g6 {[%clk 0:04:58]} 4.
Nc3 {[%clk 0:04:56.5]} 4... Bg7 {[%clk 0:04:57.6]} 5. e4 {[%clk 0:04:56.1]} 5...
Nf6 {[%clk 0:04:57.5]} 6. Nge2 {[%clk 0:04:54.7]} 6... O-O {[%clk 0:04:57.4]} 7.
Ng3 {[%clk 0:04:54.3]} 7... Nbd7 {[%clk 0:04:56.3]} 8. f3 {[%clk 0:04:52.3]}
8... a6 {[%clk 0:04:54.1]} 9. a4 {[%clk 0:04:51.1]} 9... Rb8 {[%clk 0:04:53]}
10. Be2 {[%clk 0:04:49.2]} 10... Ne5 {[%clk 0:04:49.8]} 11. O-O {[%clk
0:04:47.2]} 11... Bd7 {[%clk 0:04:47.2]} 12. h3 {[%clk 0:04:45.4]} 12... Be8
{[%clk 0:04:44.3]} 13. f4 {[%clk 0:04:43.4]} 13... Ned7 {[%clk 0:04:43.8]} 14.
Bf3 {[%clk 0:04:41.8]} 14... b5 {[%clk 0:04:42.4]} 15. axb5 {[%clk 0:04:41.7]}
15... axb5 {[%clk 0:04:42.3]} 16. Nxb5 {[%clk 0:04:40.1]} 16... Nb6 {[%clk
0:04:41.3]} 17. Na3 {[%clk 0:04:27.6]} 17... Ba4 {[%clk 0:04:35.4]} 18. Qe2
{[%clk 0:04:23.4]} 18... h5 {[%clk 0:04:32.1]} 19. e5 {[%clk 0:04:16.8]} 19...
dxe5 {[%clk 0:04:30.9]} 20. fxe5 {[%clk 0:04:16.6]} 20... Ne8 {[%clk 0:04:30]}
21. Bg5 {[%clk 0:04:05.6]} 21... Qd7 {[%clk 0:04:23.4]} 22. Kh1 {[%clk 0:03:45]}
22... f6 {[%clk 0:04:18.2]} 23. e6 {[%clk 0:03:37.8]} 23... Qd6 {[%clk
0:04:16.8]} 24. Ne4 {[%clk 0:03:35]} 24... Qe5 {[%clk 0:04:10.2]} 25. Bh4 {[%clk
0:03:28.3]} 25... f5 {[%clk 0:03:57.9]} 26. Nxc5 {[%clk 0:03:08.8]} 26... Qxb2
{[%clk 0:03:51]} 27. Bxe7 {[%clk 0:02:56.1]} 27... Qxe2 {[%clk 0:03:48.3]} 28.
Bxe2 {[%clk 0:02:56]} 28... Bxa1 {[%clk 0:03:31]} 29. Rxa1 {[%clk 0:02:47.5]}
29... Nf6 {[%clk 0:03:30.4]} 30. Bxf8 {[%clk 0:02:40.6]} 30... Kxf8 {[%clk
0:03:30.3]} 31. Rb1 {[%clk 0:02:35.7]} 31... Ke7 {[%clk 0:03:24.8]} 32. Nxa4
{[%clk 0:02:34]} 32... Ra8 {[%clk 0:03:21.2]} 33. Nxb6 {[%clk 0:02:00.7]} 33...
Rxa3 {[%clk 0:03:18.9]} 34. Bf3 {[%clk 0:01:28.4]} 34... g5 {[%clk 0:03:14.9]}
35. Re1 {[%clk 0:00:52.4]} 35... g4 {[%clk 0:03:12.7]} 36. hxg4 {[%clk
0:00:49.9]} 36... hxg4 {[%clk 0:03:12.6]} 37. Bd1 {[%clk 0:00:26.9]} 37... g3
{[%clk 0:03:11.2]} 38. c5 {[%clk 0:00:23.9]} 38... Ne4 {[%clk 0:03:06.5]} 39.
Nc8+ {[%clk 0:00:16.3]} 39... Kd8 {[%clk 0:03:05]} 40. e7+ {[%clk 0:00:14.3]}
40... Ke8 {[%clk 0:03:03.4]} 41. Bh5+ {[%clk 0:00:12.3]} 41... Kd7 {[%clk
0:02:58.5]} 42. e8=Q+ {[%clk 0:00:11.9]} 42... Kc7 {[%clk 0:02:57.9]} 43. Qc6+
{[%clk 0:00:10.5]} 43... Kb8 {[%clk 0:02:53.6]} 44. Rb1+ {[%clk 0:00:10.1]}
44... Rb3 {[%clk 0:02:49.9]} 45. Rxb3# {[%clk 0:00:09.7]} 1-0

[Event "Live Chess"]
[Site "Chess.com"]
[Date "2023.05.21"]
[Round "-"]
[White "Pablo_dmp"]
[Black "KeithArkell"]
[Result "1-0"]
[WhiteElo "1875"]
[BlackElo "2495"]
[TimeControl "300"]
[EndTime "3:00:50 PDT"]
[Termination "Pablo_dmp won by resignation"]

1. e4 {[%clk 0:04:59.4]} 1... c6 {[%clk 0:04:55.3]} 2. d4 {[%clk 0:04:58.1]}
2... d5 {[%clk 0:04:54.6]} 3. e5 {[%clk 0:04:57.4]} 3... c5 {[%clk 0:04:54.2]}
4. dxc5 {[%clk 0:04:57.3]} 4... Nc6 {[%clk 0:04:53.6]} 5. f4 {[%clk 0:04:55.7]}
5... e6 {[%clk 0:04:51.8]} 6. Be3 {[%clk 0:04:54.3]} 6... d4 {[%clk 0:04:51.3]}
7. Bf2 {[%clk 0:04:53.9]} 7... Bxc5 {[%clk 0:04:50.8]} 8. Nd2 {[%clk 0:04:51.6]}
8... Nge7 {[%clk 0:04:50.4]} 9. a3 {[%clk 0:04:48.2]} 9... a5 {[%clk 0:04:45.4]}
10. Ne4 {[%clk 0:04:45.3]} 10... Qb6 {[%clk 0:04:41.9]} 11. Bd3 {[%clk
0:04:30.4]} 11... Nd5 {[%clk 0:04:37.7]} 12. Nh3 {[%clk 0:04:02]} 12... Ne3
{[%clk 0:04:27]} 13. Qf3 {[%clk 0:03:47.8]} 13... Qxb2 {[%clk 0:04:19.8]} 14.
Kd2 {[%clk 0:03:31.2]} 14... Bxa3 {[%clk 0:04:15.5]} 15. Rhb1 {[%clk 0:03:25.4]}
15... Qb4+ {[%clk 0:03:57.1]} 16. Rxb4 {[%clk 0:03:23.2]} 16... Bxb4+ {[%clk
0:03:55.1]} 17. Ke2 {[%clk 0:03:15.9]} 17... Nd5 {[%clk 0:03:48]} 18. Nd6+
{[%clk 0:03:05.6]} 18... Bxd6 {[%clk 0:03:44.8]} 19. exd6 {[%clk 0:03:05.5]}
19... Ndb4 {[%clk 0:03:29]} 20. Qe4 {[%clk 0:02:47.9]} 20... g6 {[%clk 0:03:23]}
21. Bxd4 {[%clk 0:02:41.7]} 21... Nxd4+ {[%clk 0:03:16.9]} 22. Qxd4 {[%clk
0:02:41.6]} 22... O-O {[%clk 0:03:14.4]} 23. d7 {[%clk 0:02:34.2]} 23... Bxd7
{[%clk 0:03:06]} 24. Qxd7 {[%clk 0:02:31.4]} 24... Rfd8 {[%clk 0:03:05.2]} 25.
Qxb7 {[%clk 0:02:27.1]} 25... Rac8 {[%clk 0:03:02]} 26. Rxa5 {[%clk 0:02:20.5]}
26... Nxd3 {[%clk 0:03:00.8]} 27. cxd3 {[%clk 0:02:18.5]} 27... Rc2+ {[%clk
0:02:59.9]} 28. Ke3 {[%clk 0:02:14.3]} 28... Rc3 {[%clk 0:02:55.8]} 29. Nf2
{[%clk 0:02:11.9]} 29... Kg7 {[%clk 0:02:53.1]} 30. Qb2 {[%clk 0:02:06.2]} 1-0

[Event "Live Chess"]
[Site "Chess.com"]
[Date "2023.05.21"]
[Round "-"]
[White "EdenHazard8"]
[Black "Duke_of_Bebington"]
[Result "1-0"]
[WhiteElo "1966"]
[BlackElo "1587"]
[TimeControl "300"]
[EndTime "3:00:53 PDT"]
[Termination "EdenHazard8 won by resignation"]

1. e4 {[%clk 0:04:58.9]} 1... e5 {[%clk 0:04:58.7]} 2. Nf3 {[%clk 0:04:58.2]}
2... Nf6 {[%clk 0:04:57.8]} 3. Nxe5 {[%clk 0:04:57.2]} 3... d6 {[%clk
0:04:56.7]} 4. Nd3 {[%clk 0:04:56.8]} 4... Nxe4 {[%clk 0:04:55.6]} 5. Qe2 {[%clk
0:04:55.9]} 5... Qe7 {[%clk 0:04:54.1]} 6. Nc3 {[%clk 0:04:55.1]} 6... Nxc3
{[%clk 0:04:52.9]} 7. dxc3 {[%clk 0:04:55]} 7... Qxe2+ {[%clk 0:04:49.9]} 8.
Bxe2 {[%clk 0:04:54.9]} 8... Nc6 {[%clk 0:04:43.8]} 9. h4 {[%clk 0:04:52.9]}
9... Be6 {[%clk 0:04:42.6]} 10. g3 {[%clk 0:04:51.8]} 10... Be7 {[%clk
0:04:36.4]} 11. Bf3 {[%clk 0:04:50.6]} 11... Kd7 {[%clk 0:04:31.7]} 12. Be3
{[%clk 0:04:48.5]} 12... Rab8 {[%clk 0:04:28.3]} 13. O-O-O {[%clk 0:04:47.3]}
13... h6 {[%clk 0:04:23]} 14. Nc5+ {[%clk 0:04:45.9]} 14... Kc8 {[%clk
0:04:18.9]} 15. Nxe6 {[%clk 0:04:44.5]} 15... fxe6 {[%clk 0:04:18.8]} 16. Bg4
{[%clk 0:04:44.2]} 16... Nd8 {[%clk 0:04:16.4]} 17. Bxa7 {[%clk 0:04:39.9]}
17... Ra8 {[%clk 0:04:15.5]} 18. Bd4 {[%clk 0:04:37.9]} 18... Rxa2 {[%clk
0:04:08.4]} 19. Kb1 {[%clk 0:04:36.9]} 19... Ra5 {[%clk 0:04:06.6]} 20. Rhe1
{[%clk 0:04:28.4]} 20... Kb8 {[%clk 0:03:53.7]} 21. Bxe6 {[%clk 0:04:26.1]}
21... Re8 {[%clk 0:03:51.3]} 22. Bxg7 {[%clk 0:04:20]} 22... Nc6 {[%clk
0:03:42.3]} 23. Bd7 {[%clk 0:04:18.5]} 1-0

[Event "Live Chess"]
[Site "Chess.com"]
[Date "2023.05.21"]
[Round "-"]
[White "JohanKjeldahl"]
[Black "RockTroll"]
[Result "0-1"]
[WhiteElo "1884"]
[BlackElo "2230"]
[TimeControl "300"]
[EndTime "3:00:56 PDT"]
[Termination "RockTroll won by resignation"]

1. c4 {[%clk 0:04:57.8]} 1... Nf6 {[%clk 0:04:58.4]} 2. Nc3 {[%clk 0:04:56.4]}
2... g6 {[%clk 0:04:57.8]} 3. d4 {[%clk 0:04:54.6]} 3... Bg7 {[%clk 0:04:56.9]}
4. Nf3 {[%clk 0:04:52.6]} 4... O-O {[%clk 0:04:32.1]} 5. g3 {[%clk 0:04:51.8]}
5... d6 {[%clk 0:04:30.8]} 6. Bg2 {[%clk 0:04:50.8]} 6... c6 {[%clk 0:04:30.3]}
7. O-O {[%clk 0:04:50]} 7... Bf5 {[%clk 0:04:28.8]} 8. b3 {[%clk 0:04:44]} 8...
Ne4 {[%clk 0:04:27.4]} 9. Bb2 {[%clk 0:04:42.3]} 9... Nxc3 {[%clk 0:04:25.7]}
10. Bxc3 {[%clk 0:04:40]} 10... Be4 {[%clk 0:04:25.4]} 11. e3 {[%clk 0:04:35.2]}
11... d5 {[%clk 0:04:22.8]} 12. Ng5 {[%clk 0:04:32.2]} 12... Bxg2 {[%clk
0:04:20.5]} 13. Kxg2 {[%clk 0:04:31.4]} 13... e6 {[%clk 0:04:15.7]} 14. Rc1
{[%clk 0:04:27.2]} 14... Qxg5 {[%clk 0:04:13.5]} 15. cxd5 {[%clk 0:04:24]} 15...
Qxd5+ {[%clk 0:04:11.1]} 16. f3 {[%clk 0:04:21.1]} 16... Nd7 {[%clk 0:04:09.9]}
17. e4 {[%clk 0:04:19.5]} 17... Qd6 {[%clk 0:04:07.6]} 18. Qd2 {[%clk
0:04:14.2]} 18... Rad8 {[%clk 0:04:03.8]} 19. Bb4 {[%clk 0:04:12.7]} 19... c5
{[%clk 0:04:00.5]} 20. dxc5 {[%clk 0:04:11]} 20... Qxd2+ {[%clk 0:03:55.7]} 21.
Bxd2 {[%clk 0:04:09.9]} 21... Rc8 {[%clk 0:03:50.6]} 22. Be3 {[%clk 0:04:08.2]}
22... a5 {[%clk 0:03:41.8]} 23. Rfd1 {[%clk 0:04:06.8]} 23... Ne5 {[%clk
0:03:40.1]} 24. a3 {[%clk 0:03:59.3]} 24... Rfd8 {[%clk 0:03:38.8]} 25. Rxd8+
{[%clk 0:03:55.5]} 25... Rxd8 {[%clk 0:03:37.3]} 26. b4 {[%clk 0:03:55]} 26...
axb4 {[%clk 0:03:35.4]} 27. axb4 {[%clk 0:03:53.9]} 27... Nd3 {[%clk 0:03:34.3]}
28. Rb1 {[%clk 0:03:51.9]} 28... Bd4 {[%clk 0:03:30.5]} 29. Bd2 {[%clk 0:03:47]}
29... Ra8 {[%clk 0:03:25]} 30. Kh3 {[%clk 0:03:39.1]} 30... Ra2 {[%clk
0:03:23.7]} 31. Bg5 {[%clk 0:03:35.7]} 31... f6 {[%clk 0:03:21.7]} 32. Bh6
{[%clk 0:03:30.5]} 32... g5 {[%clk 0:03:20.6]} 33. f4 {[%clk 0:03:12.7]} 33...
Nf2+ {[%clk 0:03:19.2]} 34. Kg2 {[%clk 0:03:07.7]} 34... Nxe4+ {[%clk
0:03:18.3]} 35. Kf3 {[%clk 0:03:06.8]} 35... Nd2+ {[%clk 0:03:14.9]} 0-1

[Event "Live Chess"]
[Site "Chess.com"]
[Date "2023.05.21"]
[Round "-"]
[White "chessfiction"]
[Black "Ian-Morley"]
[Result "1-0"]
[WhiteElo "2318"]
[BlackElo "1050"]
[TimeControl "300"]
[EndTime "3:01:07 PDT"]
[Termination "chessfiction won by resignation"]

1. e4 {[%clk 0:04:56.2]} 1... e5 {[%clk 0:04:52.9]} 2. d4 {[%clk 0:04:56.1]}
2... exd4 {[%clk 0:04:51.1]} 3. c3 {[%clk 0:04:56]} 3... dxc3 {[%clk 0:04:48.1]}
4. Nxc3 {[%clk 0:04:55.9]} 4... Bb4 {[%clk 0:04:43.6]} 5. Nf3 {[%clk 0:04:55.8]}
5... Bxc3+ {[%clk 0:04:42.3]} 6. bxc3 {[%clk 0:04:55.6]} 6... Nf6 {[%clk
0:04:41.8]} 7. e5 {[%clk 0:04:54.4]} 7... Ng8 {[%clk 0:04:39.4]} 8. Bc4 {[%clk
0:04:53.3]} 8... d5 {[%clk 0:04:34.2]} 9. Bxd5 {[%clk 0:04:49.8]} 9... c6 {[%clk
0:04:32.1]} 10. Bxf7+ {[%clk 0:04:47.5]} 10... Ke7 {[%clk 0:04:29.4]} 11. Bg5+
{[%clk 0:04:45.6]} 11... Nf6 {[%clk 0:04:27.2]} 12. Bb3 {[%clk 0:04:24.1]} 12...
Qxd1+ {[%clk 0:04:25.6]} 13. Rxd1 {[%clk 0:04:24]} 13... h6 {[%clk 0:04:23.1]}
14. exf6+ {[%clk 0:04:22.8]} 14... gxf6 {[%clk 0:04:22.4]} 15. Be3 {[%clk
0:04:21.3]} 15... Bg4 {[%clk 0:04:20.2]} 16. Rd4 {[%clk 0:04:16.2]} 16... Bxf3
{[%clk 0:04:18.7]} 17. gxf3 {[%clk 0:04:16.1]} 17... Nd7 {[%clk 0:04:17.3]} 18.
Rg1 {[%clk 0:04:14.4]} 18... Rh7 {[%clk 0:04:11.6]} 19. Bf4 {[%clk 0:04:07.6]}
19... Ne5 {[%clk 0:04:09.9]} 20. Bxe5 {[%clk 0:04:05.2]} 20... fxe5 {[%clk
0:04:01.6]} 21. Re4 {[%clk 0:04:05.1]} 21... Kd6 {[%clk 0:03:59.9]} 22. Rg6+
{[%clk 0:04:03.2]} 22... Kc7 {[%clk 0:03:57.3]} 23. Rxe5 {[%clk 0:04:02.3]}
23... Rd7 {[%clk 0:03:52.1]} 24. Rxh6 {[%clk 0:03:59]} 24... Rad8 {[%clk
0:03:50.5]} 25. Rhe6 {[%clk 0:03:57.1]} 25... Rd6 {[%clk 0:03:48.9]} 26. Rxd6
{[%clk 0:03:52.4]} 26... Rxd6 {[%clk 0:03:48]} 27. f4 {[%clk 0:03:51.4]} 27...
Rh6 {[%clk 0:03:46.8]} 28. f5 {[%clk 0:03:50.4]} 28... Rxh2 {[%clk 0:03:45.1]}
29. f6 {[%clk 0:03:49.9]} 29... Rh1+ {[%clk 0:03:44.5]} 30. Ke2 {[%clk
0:03:48.7]} 30... Rh8 {[%clk 0:03:43.1]} 31. f7 {[%clk 0:03:47.4]} 31... Rf8
{[%clk 0:03:42.6]} 32. Re8 {[%clk 0:03:45.4]} 1-0

[Event "Live Chess"]
[Site "Chess.com"]
[Date "2023.05.21"]
[Round "-"]
[White "ChessTWSS"]
[Black "Purple1szed"]
[Result "0-1"]
[WhiteElo "1644"]
[BlackElo "1829"]
[TimeControl "300"]
[EndTime "3:01:11 PDT"]
[Termination "Purple1szed won on time"]

1. d4 {[%clk 0:04:58.1]} 1... Nf6 {[%clk 0:04:58.6]} 2. Bf4 {[%clk 0:04:54.1]}
2... c5 {[%clk 0:04:57.6]} 3. e3 {[%clk 0:04:44.7]} 3... d5 {[%clk 0:04:55.6]}
4. c3 {[%clk 0:04:40.2]} 4... Nc6 {[%clk 0:04:51.4]} 5. Bd3 {[%clk 0:04:35.7]}
5... e6 {[%clk 0:04:36.2]} 6. Nd2 {[%clk 0:04:29.9]} 6... cxd4 {[%clk
0:04:35.5]} 7. cxd4 {[%clk 0:04:24.1]} 7... Bd6 {[%clk 0:04:33.2]} 8. Bg3 {[%clk
0:04:19.2]} 8... O-O {[%clk 0:04:20.6]} 9. Ngf3 {[%clk 0:04:14.2]} 9... a6
{[%clk 0:04:14.6]} 10. O-O {[%clk 0:04:02.5]} 10... Bxg3 {[%clk 0:04:13]} 11.
hxg3 {[%clk 0:03:58.9]} 11... Re8 {[%clk 0:04:11.7]} 12. a3 {[%clk 0:03:47.7]}
12... e5 {[%clk 0:04:08.8]} 13. Nxe5 {[%clk 0:03:38.9]} 13... Nxe5 {[%clk
0:04:08.7]} 14. dxe5 {[%clk 0:03:35.2]} 14... Rxe5 {[%clk 0:04:08.6]} 15. Nf3
{[%clk 0:03:29.8]} 15... Re8 {[%clk 0:04:06.7]} 16. b4 {[%clk 0:03:10.2]} 16...
Bg4 {[%clk 0:03:57.2]} 17. Rc1 {[%clk 0:02:40.8]} 17... Qd7 {[%clk 0:03:47.5]}
18. Qc2 {[%clk 0:02:31]} 18... Rac8 {[%clk 0:03:44.5]} 19. Qb1 {[%clk
0:02:26.8]} 19... Bxf3 {[%clk 0:03:37.5]} 20. gxf3 {[%clk 0:02:22.8]} 20... h6
{[%clk 0:03:31.9]} 21. Bf5 {[%clk 0:02:07.3]} 21... Rxc1 {[%clk 0:03:24.6]} 22.
Rxc1 {[%clk 0:02:02.3]} 22... Qd6 {[%clk 0:03:05.2]} 23. f4 {[%clk 0:01:55.1]}
23... g6 {[%clk 0:02:58.1]} 24. Bh3 {[%clk 0:01:46.7]} 24... Ne4 {[%clk
0:02:56.1]} 25. Qc2 {[%clk 0:01:40.1]} 25... Re7 {[%clk 0:02:38.3]} 26. Bg2
{[%clk 0:01:32.3]} 26... Nf6 {[%clk 0:02:21.6]} 27. g4 {[%clk 0:01:06.9]} 27...
Kh7 {[%clk 0:02:00.8]} 28. g5 {[%clk 0:00:50.2]} 28... hxg5 {[%clk 0:01:41.8]}
29. fxg5 {[%clk 0:00:45.1]} 29... Ne4 {[%clk 0:01:41.3]} 30. Bxe4 {[%clk
0:00:37.6]} 30... Rxe4 {[%clk 0:01:34.5]} 31. Qc5 {[%clk 0:00:29.7]} 31... Rg4+
{[%clk 0:01:29.2]} 32. Kf1 {[%clk 0:00:25.2]} 32... Qh2 {[%clk 0:01:21.4]} 33.
Qc7 {[%clk 0:00:18.3]} 33... Rg1+ {[%clk 0:01:15.6]} 34. Ke2 {[%clk 0:00:17.3]}
34... Qh5+ {[%clk 0:01:08.5]} 35. f3 {[%clk 0:00:14.4]} 35... Rg2+ {[%clk
0:00:58.2]} 36. Kd3 {[%clk 0:00:13.2]} 36... Qxf3 {[%clk 0:00:45.1]} 37. Kd4
{[%clk 0:00:08.1]} 37... Qe4+ {[%clk 0:00:43.5]} 38. Kc5 {[%clk 0:00:05]} 38...
Qxe3+ {[%clk 0:00:42.3]} 39. Kxd5 {[%clk 0:00:01.2]} 39... Rd2+ {[%clk
0:00:41.5]} 0-1

[Event "Live Chess"]
[Site "Chess.com"]
[Date "2023.05.21"]
[Round "-"]
[White "Greenbecker"]
[Black "BostonStrangler"]
[Result "0-1"]
[WhiteElo "1644"]
[BlackElo "2076"]
[TimeControl "300"]
[EndTime "3:01:14 PDT"]
[Termination "BostonStrangler won by resignation"]

1. e4 {[%clk 0:04:57.5]} 1... c5 {[%clk 0:04:58.8]} 2. Nf3 {[%clk 0:04:55.5]}
2... g6 {[%clk 0:04:58]} 3. d4 {[%clk 0:04:54.4]} 3... cxd4 {[%clk 0:04:57.4]}
4. Nxd4 {[%clk 0:04:53.5]} 4... Nc6 {[%clk 0:04:56.4]} 5. Bc4 {[%clk 0:04:50]}
5... Bg7 {[%clk 0:04:54.4]} 6. c3 {[%clk 0:04:46.8]} 6... Nf6 {[%clk 0:04:52.1]}
7. Nd2 {[%clk 0:04:31.9]} 7... O-O {[%clk 0:04:50.1]} 8. O-O {[%clk 0:04:30.7]}
8... Nxd4 {[%clk 0:04:47]} 9. cxd4 {[%clk 0:04:29.2]} 9... Nxe4 {[%clk
0:04:46.1]} 10. Nxe4 {[%clk 0:04:26.2]} 10... d5 {[%clk 0:04:45.2]} 11. Bxd5
{[%clk 0:03:54.2]} 11... Qxd5 {[%clk 0:04:42.2]} 12. Nc3 {[%clk 0:03:41.9]}
12... Qxd4 {[%clk 0:04:41.1]} 13. Be3 {[%clk 0:03:38.6]} 13... Qxd1 {[%clk
0:04:33.5]} 14. Raxd1 {[%clk 0:03:36.9]} 14... Bg4 {[%clk 0:04:32.5]} 15. f3
{[%clk 0:03:34.1]} 15... Bxc3 {[%clk 0:04:29.8]} 16. bxc3 {[%clk 0:03:29.6]}
16... Be6 {[%clk 0:04:28.8]} 17. a3 {[%clk 0:03:24.4]} 17... Rfc8 {[%clk
0:04:26.6]} 18. Bd4 {[%clk 0:03:20.9]} 18... f6 {[%clk 0:04:24.1]} 19. Rfe1
{[%clk 0:03:17.8]} 19... Kf7 {[%clk 0:04:22.6]} 20. Rb1 {[%clk 0:03:11.7]} 20...
b6 {[%clk 0:04:20.4]} 21. Re3 {[%clk 0:03:07.8]} 21... Bf5 {[%clk 0:04:15.8]}
22. Rbe1 {[%clk 0:03:05.8]} 22... e5 {[%clk 0:04:14.8]} 23. Bxe5 {[%clk
0:03:01]} 23... fxe5 {[%clk 0:04:13.6]} 24. Rxe5 {[%clk 0:03:00.2]} 24... Re8
{[%clk 0:04:11.2]} 0-1

[Event "Live Chess"]
[Site "Chess.com"]
[Date "2023.05.21"]
[Round "-"]
[White "f4nomore"]
[Black "seasidecastle27"]
[Result "0-1"]
[WhiteElo "1406"]
[BlackElo "1879"]
[TimeControl "300"]
[EndTime "3:01:29 PDT"]
[Termination "seasidecastle27 won by checkmate"]

1. b3 {[%clk 0:04:58.6]} 1... e5 {[%clk 0:04:57.7]} 2. Bb2 {[%clk 0:04:56.8]}
2... d6 {[%clk 0:04:56.4]} 3. Nc3 {[%clk 0:04:55.3]} 3... f5 {[%clk 0:04:53.2]}
4. e3 {[%clk 0:04:54.2]} 4... Nf6 {[%clk 0:04:51.7]} 5. Nf3 {[%clk 0:04:51.2]}
5... Be7 {[%clk 0:04:50]} 6. Bc4 {[%clk 0:04:48.2]} 6... c6 {[%clk 0:04:45.4]}
7. O-O {[%clk 0:04:45.8]} 7... d5 {[%clk 0:04:42.7]} 8. Be2 {[%clk 0:04:43.5]}
8... Nbd7 {[%clk 0:04:40.1]} 9. h3 {[%clk 0:04:42.4]} 9... O-O {[%clk
0:04:38.1]} 10. Nh2 {[%clk 0:04:40.8]} 10... e4 {[%clk 0:04:30]} 11. f3 {[%clk
0:04:39.1]} 11... Ne5 {[%clk 0:04:18.5]} 12. fxe4 {[%clk 0:04:36.1]} 12... fxe4
{[%clk 0:04:06]} 13. d4 {[%clk 0:04:29.8]} 13... Ng6 {[%clk 0:03:58.8]} 14. Bg4
{[%clk 0:04:08.9]} 14... Bd6 {[%clk 0:03:55.3]} 15. Bxc8 {[%clk 0:04:05.8]}
15... Rxc8 {[%clk 0:03:53.4]} 16. Na4 {[%clk 0:03:58.1]} 16... Bc7 {[%clk
0:03:49.2]} 17. Ng4 {[%clk 0:03:43.4]} 17... Qd6 {[%clk 0:03:40.2]} 18. Nxf6+
{[%clk 0:03:28.7]} 18... Rxf6 {[%clk 0:03:37.2]} 19. Qe2 {[%clk 0:03:26.4]}
19... Qh2# {[%clk 0:03:33.9]} 0-1